Cogmind - Beta 14 @@@ ROGUE MODE // 2024.09.08 @ 13:08:19 Player: Finestep Result: Destroyed by JS-J2Q(R) with Subdweller Shrapnel Launcher Performance ------------- Evolutions (0) 0 Regions Visited (2) 400 Robots Destroyed (22) 110 Value Destroyed (591) 591 Prototype IDs (2) 40 Alien Tech Used (0) 0 Bonus (0) 0 TOTAL SCORE: 1141 Bonus ------- None Cogmind --------- Core Integrity 0/250 Matter 249/300 Energy 250/250 System Corruption 0% Temperature Cool (0) Movement Treading (160) Location -10/Subcaves Parts ------- > --- POWER (1) -------- Ion Engine > --- PROPULSION (2) --- Light Treads Spiked Treads > --- UTILITY (2) ------ Large Storage Unit Structural Scanner > --- WEAPON (2) ------- Battle Cannon Battle Cannon > --- INVENTORY (15) --- Ion Engine Light Treads Spiked Treads Wheel Compact Wheel Targeting Computer Subdweller Beam Cannon Assault Rifle Assault Rifle Barrage Gun Battle Cannon Grenade Launcher Subdweller Shrapnel Launcher Mining Laser Peak State ------------ > --- POWER ------------ Ion Engine > --- PROPULSION ------- Light Treads Spiked Treads > --- UTILITY ---------- Large Storage Unit Structural Scanner > --- WEAPON ----------- Battle Cannon Battle Cannon > --- INVENTORY -------- Ion Engine Light Treads Spiked Treads Wheel Compact Wheel Targeting Computer Subdweller Beam Cannon Assault Rifle Assault Rifle Barrage Gun Battle Cannon Grenade Launcher Subdweller Shrapnel Launcher Mining Laser [Rating: 12] Favorites ----------- Power Light Ion Engine Engine Light Ion Engine Propulsion Light Treads Treads Light Treads Utility Structural Scanner Device Structural Scanner Storage Large Storage Unit Weapon Light Assault Rifle Energy Gun Small Laser Ballistic Gun Light Assault Rifle Ballistic Cannon Battle Cannon Launcher Grenade Launcher Special Weapon Mining Laser Build | -11 -10 -10 ------- Run | Yrd Mat Sub Slots Evolved . | . . . Power . | . . . Propulsion . | . . . Utility . | . . . Weapon . | . . . Parts Attached 29 | 7 11 11 Power 2 | 1 . 1 Engine 2 | 1 . 1 Core . | . . . Reactor . | . . . Propulsion 4 | 2 . 2 Treads 4 | 2 . 2 Leg . | . . . Wheel . | . . . Hover . | . . . Flight . | . . . Utility 4 | 2 2 . Device 2 | 1 1 . Storage 2 | 1 1 . Processor . | . . . Hackware . | . . . Protection . | . . . Artifact . | . . . Weapon 19 | 2 9 8 Energy Gun 2 | . 1 1 Energy Cannon . | . . . Ballistic Gun 11 | 2 6 3 Ballistic Cannon 2 | . . 2 Launcher 1 | . . 1 Special Weapon 3 | . 2 1 Impact Weapon . | . . . Slashing Weapon . | . . . Piercing Weapon . | . . . Special Melee Weapon . | . . . Unidentified Prototypes . | . . . Parts Lost 3 | . 1 2 Power 1 | . . 1 Propulsion . | . . . Utility . | . . . Weapon 2 | . 1 1 Highest Loss Streak 1 | . 1 1 To Critical Strikes . | . . . Average Slot Usage (%) 99 | . 100 99 Engine 13 | . 14 13 Treads 27 | . 28 27 Device 14 | . 14 14 Storage 14 | . 14 14 Energy Gun 3 | . 3 4 Ballistic Gun 19 | . 24 14 Ballistic Cannon 3 | . . 7 Peak Build Rating 12 | 7 8 12 Average Rating 8 | 4 7 10 On Entrance 5 | . 7 8 Naked Turns . | . . . Heaviest Build 32 | 12 28 32 Greatest Support 40 | 40 40 40 Greatest Overweight (x) . | . . . Average Overweight (x) . | . . . Largest Inventory Capacity 15 | 8 15 15 Average Capacity 13 | 6 13 15 Most Carried 15 | 5 12 15 Average Carried 11 | 2 9 14 Final Capacity 15 | 8 15 15 Final Carried 14 | 5 12 14 Class Distribution -------------------- 100% | Mutant Dominant Class ---------------- Mutant | -10/Materials Mutant | -10/Subcaves Resources | -11 -10 -10 ----------- Run | Yrd Mat Sub Matter Collected 859 | 167 430 262 Remotely . | . . . Salvage Created 888 | 20 539 329 Parts 57 | 4 36 17 Haulers Intercepted 2 | . 2 . Recyclers Shooed 2 | . 2 . Parts Field Recycled . | . . . Retrieved Matter . | . . . Parts Self-Destructed 14 | . . 14 Prevented . | . . . Kills | -11 -10 -10 ------- Run | Yrd Mat Sub Combat Hostiles Destroyed 15 | . 8 7 Guns 11 | . 8 3 Cannons 2 | . . 2 AOE 2 | . . 2 Classes Destroyed 10 | 1 6 3 Worker 1 | . 1 . Tunneler 1 | 1 . . Hauler 2 | . 2 . Recycler 1 | . 1 . Watcher 2 | . 2 . Swarmer 1 | . 1 . Grunt 7 | . 7 . Artisan 1 | . . 1 Cobbler 1 | . . 1 Subdweller 7 | . . 7 Best Kill Streak 3 | 1 3 2 Combat Bots Only 2 | . 2 2 Max Kills in Single Turn 2 | 1 1 2 Gunslinging . | . . . Exploded 2 | . . 2 Melee . | . . . Uniques/NPCs Destroyed . | . . . Combat | -11 -10 -10 -------- Run | Yrd Mat Sub Hostile Shots Fired 75 | . 46 29 Missed 16 | . 10 6 Damage Taken 974 | . 420 554 Core 273 | . 78 195 Absorbed by Shields . | . . . Core Remaining (%) 100 | 100 . . Volleys Fired 106 | 5 63 38 Largest 2 | 2 2 2 Hottest 100 | 40 100 100 Shots Fired 199 | 10 122 67 Gun 172 | 10 120 42 Cannon 17 | . . 17 Launcher 3 | . . 3 Special 7 | . 2 5 Kinetic 171 | 10 108 53 Thermal 25 | . 14 11 Explosive 3 | . . 3 Electromagnetic . | . . . Robot Hit Streak 25 | 2 12 25 Robot Miss Streak 5 | 2 5 2 Penetration Max . | . . . Secondary Targets . | . . . Shots Hit Robots 126 | 5 78 43 Core Hits 55 | 2 32 21 Critical Kills . | . . . Critical Parts Destroyed 1 | . 1 . Critical Strikes 1 | . 1 . Destroy 1 | . 1 . Melee Attacks . | . . . Impact . | . . . Slashing . | . . . Piercing . | . . . Sneak Attacks . | . . . Combat Hostiles . | . . . Follow-up Attacks . | . . . Damage Inflicted 1636 | 64 797 775 Guns 1289 | 64 797 428 Cannons 113 | . . 113 Explosions 234 | . . 234 Melee . | . . . Ramming . | . . . Kinetic 1258 | 64 698 496 Thermal 144 | . 99 45 Explosive 234 | . . 234 Electromagnetic . | . . . Impact . | . . . Slashing . | . . . Piercing . | . . . Highest Corruption . | . . . Average Corruption . | . . . Corruption Purged . | . . . Corruption Blocked . | . . . Overload Shots . | . . . Overflow Damage . | . . . Projectiles . | . . . Explosions . | . . . Melee . | . . . Knockbacks 1 | . . 1 Impact . | . . . Kinetic 1 | . . 1 Secondary . | . . . Self-Inflicted Damage 28 | . . 28 Shots 2 | . . 2 Rammed . | . . . Targets Rammed . | . . . Kicked . | . . . Crushed . | . . . Highest Temperature 32 | . 32 . Average Temperature 11 | . 11 . Received Heat Transfer 261 | . 219 42 Siege Activations . | . . . Robots Corrupted . | . . . Combat Hostiles . | . . . Parts Fried . | . . . Impact Corruptions . | . . . Robots Melted . | . . . Combat Hostiles . | . . . Parts Melted . | . . . Heat Transferred 325 | . 225 100 Parts Sabotaged . | . . . Parts Stolen . | . . . Parts Stripped . | . . . Power Chain Reactions . | . . . Alert | -11 -10 -10 ------- Run | Yrd Mat Sub Peak Influence 218 | 5 218 . Initial 3 | . 3 . Average 75 | 1 83 . Maximum Alert Level 1 | . 1 . Low Security (%) 96 | 100 96 . Level 1 3 | . 3 . Level 2 . | . . . Level 3 . | . . . Level 4 . | . . . Level 5 . | . . . High Security . | . . . Max Security . | . . . Squads Dispatched 1 | . 1 . Investigation 1 | . 1 . Extermination . | . . . Reinforcement . | . . . Assault . | . . . Garrison . | . . . Intercept . | . . . Searches Triggered . | . . . Construction Impeded . | . . . Haulers Reinforced . | . . . Active Scanning Responses . | . . . Cargo Convoy Interrupts . | . . . Stealth | -11 -10 -10 --------- Run | Yrd Mat Sub Distress Signals 2 | . 2 . Communications Jammed . | . . . Distress Signals . | . . . Times Spotted 27 | . 19 8 Peak Tracking Total 3 | . 3 2 Tactical Retreats 1 | . 1 . Traps | -11 -10 -10 ------- Run | Yrd Mat Sub Traps Triggered 1 | . . 1 Indirectly . | . . . Trap Hack Attempts . | . . . Triggered . | . . . Disarmed . | . . . Reprogrammed . | . . . Reused . | . . . Traps Extracted . | . . . Installed . | . . . Triggered . | . . . Machines | -11 -10 -10 ---------- Run | Yrd Mat Sub Machines Disabled . | . . . Max in Single Turn . | . . . Machines Repaired . | . . . Machines Dismantled . | . . . Machines Sabotaged . | . . . Overloaded Fab Kills . | . . . Hacking | -11 -10 -10 --------- Run | Yrd Mat Sub Machines Accessed 8 | . 8 . Terminals 7 | . 7 . Fabricators . | . . . Repair Stations . | . . . Recycling Units 1 | . 1 . Scanalyzers . | . . . Garrison Access . | . . . Total Hacks 23 | . 23 . Successful 12 | . 12 . Failed 11 | . 11 . Catastrophic 2 | . 2 . Database Lockouts . | . . . Manual 14 | . 14 . Terminals 21 | . 21 . Fabricators . | . . . Repair Stations . | . . . Recycling Units 2 | . 2 . Scanalyzers . | . . . Garrison Access . | . . . Terminal Hacks 6 | . 6 . Robot Schematic 1 | . 1 . Robot Analysis 1 | . 1 . Prototype ID Bank 1 | . 1 . Terminal Index 1 | . 1 . Locate Traps 1 | . 1 . Zone Layout 1 | . 1 . Fabricator Hacks . | . . . Repair Station Hacks . | . . . Recycling Unit Hacks 1 | . 1 . Retrieve Components 1 | . 1 . Scanalyzer . | . . . Garrison Access Hacks . | . . . Unauthorized Hacks 5 | . 5 . Terminals 4 | . 4 . Track 1 | . 1 . Botnet 3 | . 3 . Fabricators . | . . . Repair Stations . | . . . Recycling Units 1 | . 1 . Tunnel 1 | . 1 . Scanalyzers . | . . . Garrison Access . | . . . Data Cores Recovered . | . . . Used . | . . . Hacking Detections 8 | . 8 . Full Trace Events . | . . . Feedback Events . | . . . Feedback Blocked . | . . . Robot Schematics Acquired 1 | . 1 . Robots Built . | . . . Authchips . | . . . Time . | . . . Total Robot Build Rating . | . . . Part Schematics Acquired . | . . . Parts Built . | . . . Authchips . | . . . Time . | . . . Total Part Build Rating . | . . . Parts Repaired . | . . . Time . | . . . Parts Recycled . | . . . Recycled Matter . | . . . Retrieved Matter . | . . . Retrieved Components 2 | . 2 . Parts Scanalyzed . | . . . Part Schematics Acquired . | . . . Parts Damaged . | . . . Bothacking | -11 -10 -10 ------------ Run | Yrd Mat Sub Used RIF Installer . | . . . Robots Hacked . | . . . Non-combat . | . . . Combat . | . . . Robot Hacks Applied . | . . . Relay Couplers Released . | . . . Fabnet Peak Effective % . | . . . Robots Rewired . | . . . Allies Hacked . | . . . Hacks Repelled . | . . . Allies | -11 -10 -10 -------- Run | Yrd Mat Sub Total Allies . | . . . Largest Group . | . . . Highest-Rated Group . | . . . Highest-Rated Ally . | . . . Total Orders . | . . . Ally Attacks . | . . . Total Damage . | . . . Kills . | . . . Allies Corrupted . | . . . Allies Melted . | . . . Intel | -11 -10 -10 ------- Run | Yrd Mat Sub Robot Analysis Total 1 | . 1 . Derelict Logs Recovered . | . . . Drone Launches . | . . . Drone Recoveries . | . . . Exploration | -11 -10 -10 ------------- Run | Yrd Mat Sub Turns Passed 1963 | 96 930 937 Spaces Moved 975 | 45 448 482 Core 4 | 4 . . Treads 971 | 41 448 482 Legs . | . . . Wheels . | . . . Hover . | . . . Flight . | . . . Fastest Speed 50 | 50 160 160 Average Speed 159 | 150 160 160 Slowest Speed 160 | 160 160 160 Overloaded Moves . | . . . Propulsion Burnouts . | . . . Robots Hopped . | . . . Cave-ins Triggered . | . . . Exploration Rate (%) 40 | 5 87 29 Regions Visited 2 Branch Regions 1 Pre-discovered Areas 1 | . 1 . Known Exits Taken . | . . . Unknown Exits Taken 2 | 1 1 . Scrap Searched 8 | . . 8 Spaces Dug 2 | . 2 . Terrain Destroyed 13 | . 2 11 Melee . | . . . Projectile 2 | . 2 . AOE 11 | . . 11 Terrain Rammed . | . . . Walls Destroyed . | . . . Machines Disabled . | . . . Actions | -11 -10 -10 --------- Run | Yrd Mat Sub Total 1177 | 61 544 572 Wait 41 | . 15 26 Move 973 | 44 447 482 Hop . | . . . Pick Up 19 | 5 6 8 Fast Attach 9 | 7 1 1 Attach 5 | . 1 4 Detach . | . . . Swap 15 | . 9 6 Drop 9 | . 2 7 Fire 106 | 5 63 38 Melee . | . . . Ram . | . . . Kick . | . . . Crush . | . . . Escape Stasis . | . . . Rewire . | . . . Trap . | . . . Miscellaneous . | . . . Route ------- -11/Scrapyard -10/Materials (discovered 6 exits: [*Mat x3] / [*Min x2] / [*Sub]) -10/Subcaves (discovered 1 exit: [*Mat]) History --------- Turn | Location | Event 19 | -11/Scrapyard | Discovered new exit (range 15) 97 | -11/Scrapyard | Entered Materials 244 | -10/Materials | Discovered new exit (range 9) 317 | -10/Materials | Build established: Mutant 414 | -10/Materials | Discovered new exit (range 15) 443 | -10/Materials | Discovered new exit (range 13) 694 | -10/Materials | Discovered new exit (range 16) 879 | -10/Materials | Discovered new exit (range 15) 1018 | -10/Materials | Discovered new exit (range 7) 1027 | -10/Materials | Entered Subcaves 1043 | -10/Subcaves | Shifting Twisted Machinery released Piercing Trap 1046 | -10/Subcaves | Shifting Twisted Machinery released Battle Cannon 1126 | -10/Subcaves | Shifting Twisted Machinery released Sub. Power Source 1127 | -10/Subcaves | Shifting Twisted Machinery released Sub. Beam Cannon 1165 | -10/Subcaves | Discovered new exit (range 15) 1316 | -10/Subcaves | Core integrity fell below 50% 1681 | -10/Subcaves | Core integrity fell below 20% 1939 | -10/Subcaves | A swath of the cavern ceiling suddenly collapsed 1964 | -10/Subcaves | Ambushed by angry Subdweller bent on revenge 1964 | -10/Subcaves | Destroyed by JS-J2Q(R) with Subdweller Shrapnel Launcher Last Messages --------------- 01684_ 3M-T8B(R) destroyed. 01689_ Acquired 34 matter. 01692_ Acquired 4 matter. 01737_ Acquired 11 matter. 01755_ F1-JIC(O) cries out in pain. 01755_ F1-JIC(O) destroyed. 01762_ Acquired 29 matter. 01766_ Dropped Assault Rifle. 01766_ Acquired Battle Cannon. 01789_ TR-MIF(R): "SUBHATE!" 01793_ TR-MIF(R) destroyed. 01839_ Acquired 10 matter. 01855_ Acquired 9 matter. 01919_ KL-HAH(u) tweaks Twisted Machinery. 01939_ Derelict Log crushed. A swath of the cavern ceiling suddenly collapses. 01961_ KL-HAH(u) cries out in pain. 01961_ KL-HAH(u) destroyed. 01964_ JS-J2Q(R) angrily emerges from the Twisted Machinery. 01964_ JS-J2Q(R): "LEAVESUB!" Map ----- +----------------------------------------------------+ | ????????? ####????????????? | | ????????? ####????????????? | | ????????? ## ##????????????? | | ?????????#### ##????????????? | | ??????????### ##????????????? | | ????????##### ##????????????? | | ????????## ## #####????????????? | | ????????##### #### ## #####????????????? | | ?????????#####?####### #####????????????? | | ???????????######## ### ###????????????? | | ??????????????### ##### ##????????????? | | ??????????????## #### ##????????????? | | ??????????##### ### ###????????????? | | ??????????#### ??? ### ###????????????? | | ?????????## ???## ### ###????????????? | | ?????????## ### ##????????????? | | ?????????## ### ##????????????? | | ?????????### ## ###????????????? | | ??????????### ; #### ####????????????? | | ???????????### ; # #####?????????????? | | ????????????## ; ####?????????????? | | ????????????## # ######????????????? | | ????????????## "#"#### """"###????????????? | | ????????????# "######"" "##????????????? | | ???????????????"#######= "###????????????? | | ????????????# "####"##%|@ ####????????????? | | ????????## ?## """""##;#; ###?????????????? | | ????????## ##"#"" ""##?????????????? | | ????????## ##"##"""R"###?????????????? | | ????????### ??######""" "###?????????????? | | ????????####?????###### ##?????????????? | | ????????????????????###### ##?????????????? | | ?????????????????????# # # ##?????????????? | | ?????????????????????????? ##?????????????? | | ?????????????????????????? ##?????????????? | | ?????????????????????????? ##?????????????? | | ?????????????????????????? ###?????????????? | | ?????????????????????????? ###?????????????? | | ?????????????????????????? ##??????????????? | | ?????????????????????????? #??????????????? | | ?????????????????????????? #??????????????? | | ?????????????????????????? ##??????????????? | | ?????????????????????????? #??????????????? | | ???????????????????????????????????????????? | | ???????????????????????????????????????????? | | ???????????????????????????????????????????? | | ???????????????????????????????????????????? | | ???????????????????????????????????????????? | | ???????????????????????????????????????????? | | ???????????????????????????????????????????? | +----------------------------------------------------+ Best States ------------- Heat Dissipation 25 Energy Generation 10 Energy Capacity 250 Matter Stores 300 Matter Capacity 300 Sight Range 16 Terrain Scan Density 10 Evasion (%) 40 Recoil Reduction 2 Item Schematics ----------------- None Robot Schematics ------------------ M-13 Machinist | -10/Materials | Hacked Fabricated ------------ Nothing Alien Tech Used ----------------- None Achievements -------------- None Challenges ------------ None Game ------ Seed FlyingLightningDrive Manual? 0 Play Time 00:13:07 Cumulative 694.8 hours Start 2024.09.08 @ 12:57:23 End 2024.09.08 @ 13:08:19 Sessions 1 Manual Loads 0 Difficulty Rogue Special Mode None Game No. 438 Rogue 438 Adventurer 0 Explorer 0 Win Type - Total 9 Types 6/0/1/1/1/0/0/0/0 Lore% 66 Gallery% 84 Achievement% 75 Wizard Run 0 Options --------- Layout 0 ASCII 0 Keyboard 0 Movement Mouse Keybinds 1 Fullscreen 2 Font 24/Smallcaps Map View 76x50 Zoom Use 0% Tactical HUD 1 Map Filters NONE Filters NONE Steam 1 RUN: 26e09b66-b3dd-4a24-b08d-a1726c6cebd3